bitfinex/quotes_ETHUSD_20230905
["timestamp","ask_amount","ask_price","bid_price","bid_amount"]
[1693912029338,0.23686493,1634.0,1633.9,1.70543739]
[1693912030830,2.34516493,1634.0,1633.9,1.70543739]
[1693912035373,4.19515142,1634.0,1633.9,1.70543739]
[1693912035677,17.76205142,1634.0,1633.9,1.70543739]
[1693912035838,17.76205142,1634.0,1633.9,0.64188177]
[1693912036685,11.64210142,1634.0,1633.9,0.64188177]
[1693912041602,17.76205142,1634.0,1633.9,1.06355562]
[1693912041917,19.08905142,1634.0,1633.9,1.06355562]
[1693912042192,19.08905142,1634.0,1633.8,1.70543739]
[1693912042399,3.23590514,1633.9,1633.8,1.70543739]
[1693912042704,3.47268371,1633.9,1633.8,1.70543739]
[1693912043053,5.67728371,1633.9,1633.8,1.70543739]
[1693912043453,11.79760371,1633.9,1633.8,1.70543739]
[1693912045198,11.79760371,1633.9,1633.8,1.06355562]
[1693912046269,11.79760371,1633.9,1633.7,1.70543739]
[1693912046472,20.39812371,1633.9,1633.8,1.06355562]
[1693912046853,20.39812371,1633.9,1633.7,0.64188177]
[1693912047100,1.327,1633.8,1633.6,0.64188177]
[1693912047299,19.69021,1633.7,1633.5,0.64188177]
[1693912047502,3.296021,1633.6,1633.5,0.64188177]
[1693912047800,3.296021,1633.6,1633.4,2.66885313]
[1693912047801,15.538901,1633.6,1633.4,2.66885313]
[1693912048001,18.830601,1633.6,1633.5,1.06383964]
[1693912048303,20.157601,1633.6,1633.5,1.06383964]
[1693912048459,20.157601,1633.6,1633.4,1.70572141]
[1693912048659,3.3427601,1633.5,1633.4,1.70572141]
[1693912050099,3.3427601,1633.5,1633.4,1.06383964]
[1693912050254,3.3427601,1633.5,1633.4,1.70572141]
[1693912050658,9.4645801,1633.5,1633.4,1.06383964]
[1693912050860,9.4645801,1633.5,1633.2,14.33426327]
[1693912051216,2.27345801,1633.4,1633.3,1.06393268]
[1693912051501,10.52814801,1633.4,1633.1,8.35993521]
[1693912051700,10.52814801,1633.4,1633.1,12.2462]
[1693912051701,13.14884801,1633.4,1633.1,12.2462]
[1693912052005,1.3148848,1633.3,1633.1,7.71822344]
[1693912052174,1.55069618,1633.3,1633.1,6.12328]
[1693912052376,1.55069618,1633.3,1633.1,12.2466]
[1693912053594,1.55069618,1633.3,1633.2,1.0640303]
[1693912053803,1.55069618,1633.3,1633.2,7.1869703]
[1693912054112,0.23581138,1633.3,1633.2,13.3099103]
[1693912054608,0.23581138,1633.3,1633.2,13.95179207]
[1693912056454,5.9163,1633.5,1633.2,13.95179207]
[1693912056653,5.9163,1633.5,1633.3,1.0640303]
[1693912058351,5.9163,1633.5,1633.3,7.1865903]
[1693912058558,12.03818,1633.5,1633.2,12.88758177]
[1693912058708,5.9163,1633.5,1633.3,1.06394691]
[1693912059017,5.9163,1633.5,1633.3,7.18650691]
[1693912059205,12.03814,1633.5,1633.2,8.76204112]
[1693912059405,12.03814,1633.5,1633.3,1.06394562]
[1693912061854,1.327,1633.4,1633.3,1.06394562]
[1693912062912,1.327,1633.4,1633.3,1.01394562]
[1693912063237,1.55232873,1633.4,1633.3,1.01394562]
[1693912065021,7.67451873,1633.4,1633.3,1.01394562]
[1693912065224,7.67451873,1633.4,1633.2,1.60501349]
[1693912066651,7.67451873,1633.4,1633.3,0.64188177]
[1693912067170,7.67451873,1633.4,1633.2,1.60501349]
[1693912067723,9.99781873,1633.4,1633.3,0.64188177]
[1693912068361,12.4608226,1633.4,1633.3,0.64188177]
[1693912070064,12.4608226,1633.4,1633.2,0.64188177]
[1693912072472,12.4608226,1633.4,1633.2,1.60501349]
[1693912073077,1.327,1633.3,1633.2,1.60501349]
[1693912073440,0.41714044,1633.3,1633.2,1.60501349]
[1693912075254,0.41714044,1633.3,1633.2,0.96313172]
[1693912076076,0.41714044,1633.3,1633.2,1.60330492]
[1693912076684,0.41714044,1633.3,1633.2,0.96313172]
[1693912080304,0.22509269,1633.3,1633.2,0.96313172]
[1693912083012,0.22509269,1633.3,1633.2,2.02714269]
[1693912083314,0.22509269,1633.3,1633.2,3.13133488]
[1693912083518,0.22509269,1633.3,1633.2,4.41582616]
[1693912084517,0.22509269,1633.3,1633.2,3.31163397]
[1693912086517,0.22509269,1633.3,1633.2,2.34850225]
[1693912087075,0.22509269,1633.3,1633.2,8.47144225]
[1693912087403,0.22509269,1633.3,1633.2,14.59438225]
[1693912087730,0.22509269,1633.3,1633.2,16.20155022]
[1693912088026,3.7153,1633.5,1633.2,14.91705894]
[1693912088195,3.7153,1633.5,1633.4,0.64132583]
[1693912089580,3.7153,1633.5,1633.4,1.60331457]
[1693912090477,3.7153,1633.5,1633.4,0.64132583]
[1693912090678,2.3883,1633.5,1633.4,2.02599971]
[1693912090919,3.7153,1633.5,1633.4,2.66797578]
[1693912091101,3.7153,1633.5,1633.4,1.60396481]
[1693912091710,3.7153,1633.5,1633.4,2.02599971]
[1693912091910,3.7153,1633.5,1633.4,0.96198874]
[1693912093395,10.726137,1633.5,1633.4,0.96198874]
[1693912093581,16.847957,1633.5,1633.4,2.02599971]
[1693912093795,19.126557,1633.5,1633.4,0.96198874]
[1693912094994,19.126557,1633.5,1633.4,2.02599971]
[1693912095191,19.126557,1633.5,1633.4,0.96198874]
[1693912096833,19.126557,1633.5,1633.4,1.60489708]
[1693912097026,19.35204459,1633.5,1633.4,1.60489708]
[1693912098530,19.35204459,1633.5,1633.4,0.64290834]
[1693912099646,18.46302759,1633.5,1633.4,1.70691931]
[1693912099801,18.46302759,1633.5,1633.4,0.64290834]
[1693912100000,18.46302759,1633.5,1633.4,1.70691931]
[1693912100642,18.46302759,1633.5,1633.4,0.64290834]
[1693912100799,18.46302759,1633.5,1633.4,1.70691931]
[1693912100995,18.46302759,1633.5,1633.4,1.06401097]
[1693912101238,18.46302759,1633.5,1633.4,1.70691931]
[1693912101437,18.46302759,1633.5,1633.4,1.06401097]
[1693912101673,18.46302759,1633.5,1633.3,1.70691931]
[1693912101867,18.46302759,1633.5,1633.4,1.06401097]
[1693912102061,18.46302759,1633.5,1633.3,1.70691931]
[1693912103157,1.327,1633.4,1633.3,1.70691931]
[1693912103358,7.44919,1633.4,1633.3,1.70691931]
[1693912105656,1.327,1633.4,1633.3,1.70691931]
[1693912111977,1.55210189,1633.4,1633.3,1.70691931]
[1693912116092,3.81910189,1633.4,1633.3,1.70691931]
[1693912117413,9.94129189,1633.4,1633.3,1.70691931]
[1693912117823,16.06348189,1633.4,1633.3,1.70691931]
[1693912118027,16.06348189,1633.4,1633.3,0.64290834]
[1693912125645,18.54208208,1633.4,1633.3,0.64290834]
[1693912128249,16.06348189,1633.4,1633.3,0.64290834]
[1693912134863,16.06348189,1633.4,1633.3,1.06401097]
[1693912135164,16.06348189,1633.4,1633.3,0.64290834]
[1693912135466,16.06348189,1633.4,1633.1,0.64290834]
[1693912135467,22.18567189,1633.4,1633.1,0.64290834]
[1693912135940,2.1361,1633.3,1633.1,1.70702683]
[1693912136132,6.12294,1633.2,1633.1,1.70702683]
[1693912136544,8.48356853,1633.2,1633.1,1.70702683]
[1693912136869,8.48356853,1633.2,1633.1,1.06411849]
[1693912137457,8.48356853,1633.2,1633.1,1.70702683]
[1693912137767,8.48356853,1633.2,1633.1,1.06411849]
[1693912140371,3.68762853,1633.2,1633.1,1.06411849]
[1693912149080,1.55152853,1633.2,1633.1,1.06411849]
[1693912156106,0.22452853,1633.2,1633.1,13.31075849]
[1693912156278,0.22452853,1633.2,1633.1,15.32849417]
[1693912156606,1.327,1633.4,1633.1,15.32849417]
[1693912156813,1.327,1633.4,1633.2,7.18694849]
[1693912157027,1.327,1633.4,1633.2,6.12283]
[1693912158817,13.57176,1633.4,1633.1,8.78396402]
[1693912159106,1.327,1633.4,1633.2,1.06403808]
[1693912159608,1.327,1633.4,1633.1,14.26393568]
[1693912159913,1.327,1633.4,1633.1,8.14079568]
[1693912160075,3.8521,1633.4,1633.1,8.14079568]
[1693912160277,6.139,1633.4,1633.1,8.14079568]
[1693912160575,6.139,1633.4,1633.1,14.26411568]
[1693912161432,12.26123,1633.4,1633.1,14.26411568]
[1693912162990,12.26123,1633.4,1633.1,8.14079568]
[1693912165406,12.26123,1633.4,1633.1,14.26411568]
[1693912165608,6.139,1633.4,1633.1,14.26411568]
[1693912168108,12.26121,1633.4,1633.1,14.26411568]
[1693912169447,6.139,1633.4,1633.1,14.26411568]
[1693912169611,12.26121,1633.4,1633.1,14.26411568]
[1693912170465,12.26121,1633.4,1633.2,1.06406626]
[1693912172159,0.21874898,1633.3,1633.2,1.06406626]
[1693912172354,0.21874898,1633.3,1633.2,7.18694626]
[1693912176974,0.21874898,1633.3,1633.2,1.06406626]
[1693912177270,2.45924898,1633.3,1633.2,1.06406626]
[1693912178036,2.45924898,1633.3,1633.2,1.04936626]
[1693912178695,0.21874898,1633.3,1633.2,13.9381546]
[1693912178850,0.21874898,1633.3,1633.2,16.04047493]
[1693912179369,9.73105,1633.5,1633.2,16.04047493]
[1693912179570,8.40405,1633.5,1633.2,16.58605211]
[1693912179964,0.26708244,1633.4,1633.2,14.99110867]
[1693912184682,2.55728244,1633.4,1633.2,14.99110867]
[1693912185474,2.55728244,1633.4,1633.2,16.58605211]
[1693912185775,2.55728244,1633.4,1633.2,14.99110867]
[1693912193161,2.55728244,1633.4,1633.2,16.58605211]
[1693912193375,2.55728244,1633.4,1633.2,14.99110867]
[1693912198347,2.55728244,1633.4,1633.3,1.06398703]
[1693912198638,2.55728244,1633.4,1633.3,7.18655703]
[1693912200221,2.55728244,1633.4,1633.3,13.30912703]
[1693912212259,2.55728244,1633.4,1633.3,13.80021749]
[1693912222479,2.55728244,1633.4,1633.3,14.44312583]
[1693912232172,2.69117737,1633.4,1633.3,14.44312583]
[1693912232882,2.69717969,1633.4,1633.3,14.44312583]
[1693912241295,2.69717969,1633.4,1633.3,13.3791388]
[1693912241484,2.69717969,1633.4,1633.3,14.4431321]
[1693912272090,0.40697969,1633.4,1633.3,14.4431321]
[1693912286557,0.40697969,1633.4,1633.3,13.3791388]
[1693912286860,0.40697969,1633.4,1633.3,14.44312727]
[1693912288750,2.52397969,1633.4,1633.3,14.44312727]
[1693912293098,3.85097969,1633.4,1633.3,14.44312727]
[1693912295660,12.77736766,1633.4,1633.2,1.70689681]
[1693912297072,12.77736766,1633.4,1633.2,7.82983681]
[1693912297267,12.77736766,1633.4,1633.3,1.06398847]
[1693912298658,25.02174766,1633.4,1633.1,2.08525492]
[1693912298857,13.52287677,1633.3,1633.2,1.06409341]
[1693912299089,14.84987677,1633.3,1633.2,1.06409341]
[1693912299390,15.24542278,1633.3,1633.0,15.54796979]
[1693912299562,13.91842278,1633.3,1633.1,1.06413524]
[1693912299756,5.04974228,1633.2,1633.1,1.06413524]
[1693912299960,5.05571865,1633.2,1633.1,1.06413524]
[1693912300377,11.17865865,1633.2,1633.1,1.06413524]
[1693912306288,11.17865865,1633.2,1633.0,6.70785108]
[1693912306492,13.81065865,1633.2,1633.0,6.70785108]
[1693912307183,0.39515805,1633.1,1633.0,6.70785108]
[1693912307371,0.39515805,1633.1,1633.0,7.77199816]
[1693912307576,12.41881637,1633.2,1633.0,7.77199816]
[1693912307777,12.41881637,1633.2,1633.0,6.70785108]
[1693912311709,14.40072868,1633.2,1633.0,6.70785108]
[1693912321833,0.39564904,1633.1,1633.0,6.70785108]
[1693912322121,0.39564904,1633.1,1633.0,7.77200244]
[1693912322321,14.40072868,1633.2,1633.0,7.77200244]
[1693912322469,14.40072868,1633.2,1633.0,6.70785108]
[1693912333786,1.327,1633.1,1633.0,6.70785108]
[1693912333986,1.327,1633.1,1633.0,7.7720039]
[1693912334935,1.33297171,1633.1,1633.0,7.7720039]
[1693912335325,3.61067171,1633.1,1633.0,7.7720039]
[1693912336913,4.00624307,1633.1,1633.0,7.7720039]
[1693912337737,4.00624307,1633.1,1633.0,7.77200314]
[1693912338339,4.00624307,1633.1,1633.0,8.41491148]
[1693912338539,4.00624307,1633.1,1633.0,7.77200314]
[1693912339208,4.00624307,1633.1,1633.0,8.41491148]
[1693912343941,5.28383138,1633.1,1633.0,7.77200314]
[1693912344317,15.25277138,1633.1,1633.0,0.1]
[1693912344516,21.37609138,1633.1,1633.0,0.1]
[1693912344712,23.47949138,1633.1,1633.0,0.1]
[1693912346744,17.35617138,1633.1,1633.0,0.1]
[1693912346963,11.23285138,1633.1,1633.0,0.1]
[1693912347152,17.35617138,1633.1,1633.0,0.1]
[1693912347518,17.37087138,1633.1,1633.0,0.1]
[1693912360405,7.86656307,1633.1,1633.0,0.1]
[1693912360550,0.41624307,1633.1,1633.0,12.24738]
[1693912363154,1.74324307,1633.1,1633.0,12.24738]
[1693912364968,0.41624307,1633.1,1633.0,12.24738]
[1693912368001,0.41624307,1633.1,1633.0,6.12369]
[1693912368298,1.74324307,1633.1,1633.0,6.12369]
[1693912368496,1.74324307,1633.1,1632.9,12.34769]
[1693912379911,1.327,1633.0,1632.9,12.34769]
[1693912380114,1.327,1633.0,1632.9,13.41191505]
[1693912380412,0.3659486,1633.0,1632.9,21.61313418]
[1693912380620,0.3659486,1633.0,1632.9,23.20936227]
[1693912380912,0.37145713,1633.0,1632.9,23.20936227]
[1693912381808,0.37145713,1633.0,1632.9,23.85227061]
[1693912381979,0.37145713,1633.0,1632.9,23.20936227]
[1693912382602,0.37145713,1633.0,1632.9,23.85227061]
[1693912404558,0.37145713,1633.0,1632.9,24.81425935]
[1693912405760,0.37145713,1633.0,1632.9,22.73711022]
[1693912412868,2.51905713,1633.0,1632.9,22.73711022]
[1693912419594,2.51905713,1633.0,1632.9,22.09420188]
[1693912432516,0.37145713,1633.0,1632.9,22.09420188]
[1693912442351,0.37145713,1633.0,1632.9,22.09425584]
[1693912454743,2.69415713,1633.0,1632.9,22.09425584]
[1693912457376,3.20881284,1633.0,1632.9,22.09425584]
[1693912457671,3.20881284,1633.0,1632.9,20.49795158]
[1693912458742,2.69415713,1633.0,1632.9,20.49795158]
[1693912467851,2.69415713,1633.0,1632.9,22.09425584]
[1693912468056,2.69415713,1633.0,1632.9,20.49795158]
[1693912469698,4.02115713,1633.0,1632.9,20.17946689]
[1693912471002,4.02115713,1633.0,1632.9,14.05539689]
[1693912471166,4.66851284,1633.0,1632.9,14.05539689]
[1693912471364,4.66851284,1633.0,1632.9,9.52780115]
[1693912471564,4.66851284,1633.0,1632.9,7.93149689]
[1693912477399,4.66851284,1633.0,1632.9,14.05556689]
[1693912478417,2.69415713,1633.0,1632.9,20.17963689]
[1693912478698,0.37145713,1633.0,1632.9,21.77594115]
[1693912492695,0.37145713,1633.0,1632.9,19.11543405]
[1693912492917,0.37145713,1633.0,1632.9,9.52782323]
[1693912493113,0.37145713,1633.0,1632.9,7.93150572]
[1693912493488,2.55895713,1633.0,1632.9,7.93150572]
[1693912493819,2.55895713,1633.0,1632.9,9.52782323]
[1693912494015,2.55895713,1633.0,1632.9,7.93150572]
[1693912495325,3.80513384,1633.0,1632.9,7.93150572]
[1693912497929,5.13213384,1633.0,1632.9,7.93150572]
[1693912498248,5.13213384,1633.0,1632.9,14.05557572]
[1693912498446,3.88595713,1633.0,1632.9,14.05557572]
[1693912504424,2.55895713,1633.0,1632.9,14.05557572]
[1693912504624,0.37145713,1633.0,1632.9,20.17964572]
[1693912504925,0.37145713,1633.0,1632.9,21.77596323]
[1693912507658,0.37145713,1633.0,1632.9,25.4821251]
[1693912507837,0.37145713,1633.0,1632.9,29.16281312]
[1693912508158,0.0147,1633.1,1633.0,0.00550853]
[1693912508452,0.0147,1633.1,1633.0,26.3543909]
[1693912508957,0.0147,1633.1,1633.0,25.06852294]
[1693912509160,0.0196449,1633.1,1633.0,25.06852294]
[1693912509452,0.0196449,1633.1,1633.0,27.60647913]
[1693912510162,0.0196449,1633.1,1633.0,27.6009706]
[1693912513189,0.0196449,1633.1,1633.0,28.24343125]
[1693912516110,0.0147,1633.1,1633.0,28.24343125]
[1693912516267,0.0147,1633.1,1633.0,27.27903028]
[1693912516776,0.0147,1633.1,1633.0,28.24343125]
[1693912517094,0.36790087,1633.1,1633.0,28.24343125]
[1693912517394,0.36790087,1633.1,1633.0,27.27903028]
[1693912518881,0.36790087,1633.1,1633.0,27.76789574]
[1693912523411,0.36790087,1633.1,1633.0,27.95094452]
[1693912532512,0.49974952,1633.1,1633.0,27.95094452]
[1693912533018,0.50267,1633.1,1633.0,27.95094452]
[1693912544351,0.50267,1633.1,1633.0,28.91534549]
[1693912544708,0.50267,1633.1,1633.0,27.95094452]
[1693912544903,0.50267,1633.1,1633.0,16.22228407]
[1693912545104,0.50267,1633.1,1633.0,14.62596656]
[1693912545313,2.76047,1633.1,1633.0,14.62596656]
[1693912545712,2.76047,1633.1,1633.0,13.98350591]
[1693912548040,2.76047,1633.1,1633.0,7.67676713]
[1693912548543,11.487894,1633.1,1633.0,1.06421167]
[1693912549146,11.487894,1633.1,1632.9,6.22391]
[1693912549320,10.160894,1633.1,1633.0,1.06422963]
[1693912549519,11.487894,1633.1,1633.0,1.06422963]
[1693912550210,11.487894,1633.1,1632.9,12.99029065]
[1693912550543,10.160894,1633.1,1633.0,1.06422933]
[1693912550743,11.487894,1633.1,1633.0,1.06422933]
[1693912555346,11.487894,1633.1,1632.9,12.34784]
[1693912557516,11.487894,1633.1,1632.9,6.22391]
[1693912559145,1.1487894,1633.0,1632.9,6.22391]
[1693912559354,0.46891838,1633.0,1632.9,7.28814347]
[1693912560042,0.47677541,1633.0,1632.9,7.28814347]
[1693912560244,0.47677541,1633.0,1632.9,8.88446098]
[1693912560417,0.47677541,1633.0,1632.9,7.28814347]
[1693912562768,0.47677541,1633.0,1632.9,13.41221347]
[1693912565536,2.69277541,1633.0,1632.9,13.41221347]
[1693912568127,2.69277541,1633.0,1632.9,12.34798]
[1693912568328,2.69277541,1633.0,1632.9,13.41221501]
[1693912573969,0.47677541,1633.0,1632.9,21.77303562]
[1693912574273,0.47677541,1633.0,1632.9,24.01184878]
[1693912574438,0.00785703,1633.0,1632.9,24.01184878]
[1693912574970,0.4763401,1633.0,1632.9,24.01184878]
[1693912585593,0.4763401,1633.0,1632.9,24.97624975]
[1693912587097,0.46848307,1633.0,1632.9,24.97624975]
[1693912587719,0.0147,1633.1,1632.9,24.97624975]
[1693912587919,0.0147,1633.1,1633.0,5.1582125]
[1693912588106,0.0147,1633.1,1633.0,17.4055925]
[1693912588302,0.0147,1633.1,1633.0,18.04805315]
[1693912588707,0.0147,1633.1,1633.0,17.4055925]
[1693912589020,0.02227476,1633.1,1633.0,17.4055925]
[1693912589196,0.02227476,1633.1,1633.0,18.04805315]
[1693912591923,0.49072755,1633.1,1633.0,18.04805315]
[1693912592318,0.49072755,1633.1,1633.0,24.17174315]
[1693912595523,0.49072755,1633.1,1633.0,27.23875741]
[1693912599421,0.49072755,1633.1,1633.0,28.20315838]
[1693912599630,0.49072755,1633.1,1633.0,25.54257086]
[1693912599827,0.49072755,1633.1,1633.0,28.20284493]
[1693912600201,0.49072755,1633.1,1633.0,28.68127499]
[1693912600609,0.49072755,1633.1,1633.0,28.03881434]
[1693912601614,0.49072755,1633.1,1633.0,28.68162198]
[1693912603246,0.49072755,1633.1,1633.0,28.03881434]
[1693912603547,0.49072755,1633.1,1633.0,28.68158128]
[1693912607449,0.49072755,1633.1,1633.0,28.86902726]
[1693912609151,0.49072755,1633.1,1633.0,10.49795726]
[1693912609354,0.49072755,1633.1,1633.0,27.27286282]
[1693912609519,0.49072755,1633.1,1633.0,28.86902726]
[1693912612070,0.49072755,1633.1,1633.0,27.90462629]
[1693912617686,0.49072755,1633.1,1633.0,28.86902726]
[1693912618385,0.49072755,1633.1,1633.0,26.20875319]
[1693912618583,0.49072755,1633.1,1633.0,28.86906857]
[1693912619266,0.49072755,1633.1,1633.0,26.37144359]
[1693912627189,0.49072755,1633.1,1633.0,25.72867665]
[1693912643519,0.49072755,1633.1,1633.0,27.01454461]
[1693912643891,0.49072755,1633.1,1633.0,25.72867665]
[1693912644219,0.49072755,1633.1,1633.0,27.01454461]
[1693912644389,0.49072755,1633.1,1633.0,25.72867665]
[1693912644592,0.49072755,1633.1,1633.0,27.01454461]
[1693912646729,0.49072755,1633.1,1633.0,24.35422923]
[1693912647015,0.49072755,1633.1,1633.0,27.01450619]
[1693912664363,2.64252755,1633.1,1633.0,27.01450619]
[1693912671539,3.96952755,1633.1,1633.0,11.70011193]
[1693912671844,4.36648031,1633.1,1633.0,8.81807779]
[1693912676449,4.36648031,1633.1,1633.0,14.94176779]
[1693912680247,3.96952755,1633.1,1633.0,14.94176779]
[1693912682336,3.96952755,1633.1,1633.0,16.53793397]
[1693912682535,3.96952755,1633.1,1633.0,14.94176779]
[1693912703988,3.96952755,1633.1,1633.0,21.06545779]
[1693912704189,3.96952755,1633.1,1633.0,22.66162397]
[1693912704385,3.96952755,1633.1,1633.0,22.47417799]
[1693912715201,3.96952755,1633.1,1633.0,16.35048799]
[1693912715412,4.36648031,1633.1,1633.0,14.75432181]
[1693912718707,3.96952755,1633.1,1633.0,14.75432181]
[1693912725913,0.49072755,1633.1,1633.0,20.87801181]
[1693912726080,0.49072755,1633.1,1633.0,22.47417799]
[1693912729412,0.49072755,1633.1,1633.0,22.65519946]
[1693912729916,0.02227476,1633.1,1633.0,22.65519946]
[1693912730318,0.02227476,1633.1,1633.0,25.83251919]
[1693912731289,0.49577053,1633.1,1633.0,25.83251919]
[1693912737028,0.49577053,1633.1,1633.0,22.65519946]
[1693912741323,2.79037053,1633.1,1633.0,22.65519946]
[1693912754434,2.79037053,1633.1,1633.0,23.29858063]
[1693912759451,2.79037053,1633.1,1633.0,22.33417966]
[1693912760842,2.74037053,1633.1,1633.0,22.33417966]
[1693912761138,2.74728742,1633.1,1633.0,22.33417966]
[1693912762850,0.45268742,1633.1,1633.0,22.33417966]
[1693912768950,0.45268742,1633.1,1633.0,23.29858063]
[1693912769432,2.66148742,1633.1,1633.0,23.29858063]
[1693912773060,2.66148742,1633.1,1633.0,17.17489063]
[1693912774544,2.66148742,1633.1,1633.0,15.57872445]
[1693912775683,2.66148742,1633.1,1633.0,14.61432348]
[1693912778474,2.66148742,1633.1,1633.0,15.57872445]
[1693912783266,2.66148742,1633.1,1633.0,14.51461367]
[1693912783439,2.66148742,1633.1,1633.0,15.57877409]
[1693912795741,3.98848742,1633.1,1633.0,9.27406262]
[1693912795943,3.98848742,1633.1,1633.0,2.18597165]
[1693912795944,4.38733616,1633.1,1633.0,2.18597165]
[1693912800159,4.38733616,1633.1,1633.0,1.70754159]
[1693912803490,3.06033616,1633.1,1633.0,1.70754159]
[1693912803697,4.38733616,1633.1,1633.0,1.70754159]
[1693912809201,3.98848742,1633.1,1633.0,1.70754159]
[1693912809389,0.45268742,1633.1,1633.0,19.97885214]
[1693912809693,0.45268742,1633.1,1633.0,21.04301256]
[1693912810975,0.45268742,1633.1,1633.0,19.97885214]
[1693912811186,0.45268742,1633.1,1633.0,21.0429831]
[1693912813279,0.45268742,1633.1,1633.0,23.44548785]
[1693912813480,0.45268742,1633.1,1633.0,25.04168429]
[1693912818211,0.45268742,1633.1,1633.0,18.91799429]
[1693912818404,0.45268742,1633.1,1633.0,17.32179785]
[1693912818713,0.45268742,1633.1,1633.0,18.91799429]
[1693912818921,0.45268742,1633.1,1633.0,17.95359332]
[1693912819582,0.45268742,1633.1,1633.0,18.43994233]
[1693912821115,0.45268742,1633.1,1633.0,19.4043433]
[1693912821415,0.45268742,1633.1,1633.0,18.43994233]
[1693912825420,0.45268742,1633.1,1633.0,3.79005758]
[1693912825629,1.77968742,1633.1,1633.0,2.19386114]
[1693912825932,10.11930742,1633.1,1633.0,2.19386114]
[1693912828392,10.11930742,1633.1,1633.0,1.70751213]
[1693912829210,10.11930742,1633.1,1633.0,1.06413096]
[1693912830222,11.74355316,1633.1,1633.0,1.06413096]
[1693912832136,11.74563237,1633.1,1633.0,1.06413096]
[1693912832523,11.86111406,1633.1,1633.0,1.06413096]
[1693912834631,11.86111406,1633.1,1632.9,12.3479]
[1693912834924,1.327,1633.0,1632.9,12.3479]
[1693912835129,1.33598798,1633.0,1632.9,13.41215295]
[1693912835805,3.56548798,1633.0,1632.9,13.41215295]
[1693912836911,4.3777784,1633.0,1632.9,7.28832295]
[1693912837123,17.9521584,1633.0,1632.9,0.1]
[1693912837838,11.8284684,1633.0,1632.9,0.1]
[1693912838240,12.38968041,1633.0,1632.9,0.1]
[1693912838740,6.26599041,1633.0,1632.9,0.1]
[1693912839519,12.38968041,1633.0,1632.9,0.1]
[1693912839720,6.26599041,1633.0,1632.9,0.1]
[1693912841029,6.26599041,1633.0,1632.9,6.22407]
[1693912843727,12.38968041,1633.0,1632.9,0.1]
[1693912844565,14.53258129,1633.0,1632.9,0.1]
[1693912852671,20.65627129,1633.0,1632.9,0.1]
[1693912862679,23.72328555,1633.0,1632.9,0.1]
[1693912862875,29.84697555,1633.0,1632.9,0.1]
[1693912882986,30.32697555,1633.0,1632.9,0.1]
[1693912885612,29.00297555,1633.0,1632.9,0.1]
[1693912886608,30.33297555,1633.0,1632.9,0.1]
[1693912895026,30.16347555,1633.0,1632.9,0.1]
[1693912895215,30.17244942,1633.0,1632.9,0.1]
[1693912903538,8.83677676,1633.0,1632.9,0.1]
[1693912903739,2.71308676,1633.0,1632.9,12.34814]
[1693912904151,4.04308676,1633.0,1632.9,12.34814]
[1693912904514,4.04308676,1633.0,1632.9,6.22407]
[1693912905205,4.04308676,1633.0,1632.9,8.08131]
[1693912910325,4.04308676,1633.0,1632.9,6.22407]
[1693912910728,4.04308676,1633.0,1632.9,0.1]
[1693912910729,17.62046676,1633.0,1632.9,0.1]
[1693912911046,11.49677676,1633.0,1632.9,0.1]
[1693912911247,5.37308676,1633.0,1632.9,0.1]
[1693912911413,11.49677676,1633.0,1632.9,0.1]
[1693912911619,13.48959744,1633.0,1632.9,0.1]
[1693912915922,11.49677676,1633.0,1632.9,0.1]
[1693912917752,20.68748102,1633.0,1632.9,0.1]
[1693912920230,26.81117102,1633.0,1632.9,0.1]
[1693912920631,30.33061112,1633.0,1632.9,0.1]
[1693912920831,24.20692112,1633.0,1632.9,0.1]
[1693912924757,19.35748102,1633.0,1632.9,0.1]
[1693912924977,4.04308676,1633.0,1632.9,0.1]
[1693912925133,10.16677676,1633.0,1632.9,0.1]
[1693912932059,17.62046676,1633.0,1632.9,0.1]
[1693912932477,19.86976676,1633.0,1632.9,0.1]
[1693912937212,22.46908044,1633.0,1632.9,0.1]
[1693912937508,28.59277044,1633.0,1632.9,0.1]
[1693912952205,31.6597847,1633.0,1632.9,0.1]
[1693912979559,35.1397847,1633.0,1632.9,0.1]
[1693912984066,34.6597847,1633.0,1632.9,0.1]
[1693912984254,29.81117102,1633.0,1632.9,0.1]
[1693912995977,31.91187102,1633.0,1632.9,0.1]
[1693913007009,31.91187102,1633.0,1632.8,0.1]
[1693913007179,1.33,1632.9,1632.8,0.1]
[1693913007373,19.70221,1632.9,1632.8,0.1]
[1693913007596,23.5058801,1632.9,1632.8,0.1]
[1693913007881,26.22346879,1632.9,1632.8,0.1]
[1693913008209,29.29813983,1632.9,1632.8,0.1]
[1693913008574,29.77813983,1632.9,1632.8,0.1]
[1693913008777,2.14316331,1632.8,1632.7,0.1]
[1693913008977,26.56131155,1632.8,1632.7,0.1]
[1693913009177,26.56896021,1632.8,1632.7,0.1]
[1693913009411,27.89896021,1632.8,1632.4,0.7504]
[1693913009605,1.33,1632.5,1632.4,0.6]
[1693913009807,1.33,1632.5,1632.4,1.66457423]
[1693913010215,1.33762428,1632.5,1632.4,1.66457423]
[1693913012003,1.85561806,1632.5,1632.4,1.66457423]
[1693913012403,1.85561806,1632.5,1632.4,7.79051423]
[1693913017494,1.85561806,1632.5,1632.4,6.72594]
[1693913017792,1.85561806,1632.5,1632.4,7.79052272]
[1693913020914,0.52561806,1632.5,1632.4,7.79052272]
[1693913021120,1.85561806,1632.5,1632.4,7.79052272]
[1693913032235,1.85561806,1632.5,1632.4,13.91646272]
[1693913033749,0.52561806,1632.5,1632.4,20.04240272]
[1693913034055,0.52561806,1632.5,1632.4,22.28266175]
[1693913037431,0.52561806,1632.5,1632.4,21.63928058]
[1693913039241,0.52561806,1632.5,1632.4,22.28266175]
[1693913046547,0.52561806,1632.5,1632.4,22.60368155]
[1693913046764,0.52561806,1632.5,1632.4,22.92514854]
[1693913047121,0.52561806,1632.5,1632.4,27.00464651]
[1693913048879,0.52561806,1632.5,1632.4,25.71877855]
[1693913050942,0.52561806,1632.5,1632.4,28.78579281]
[1693913051144,0.52561806,1632.5,1632.4,30.07166077]
[1693913051339,0.52561806,1632.5,1632.4,32.20054179]
[1693913051567,0.00762428,1632.5,1632.4,32.20054179]
[1693913052282,2.1523,1632.9,1632.4,32.20054179]
[1693913052584,2.1523,1632.9,1632.5,6.40795988]
[1693913052766,0.46495943,1632.8,1632.6,19.43994272]
[1693913052973,0.46495943,1632.8,1632.6,19.97223786]
[1693913053146,2.1523,1632.9,1632.6,19.97223786]
[1693913053880,0.00732994,1632.7,1632.6,19.97223786]
[1693913054081,0.00732994,1632.7,1632.6,21.81165314]
[1693913054259,2.1523,1632.9,1632.6,21.81165314]
[1693913054260,2.1523,1632.9,1632.6,23.408531]
[1693913054460,2.1523,1632.9,1632.6,20.74723372]